fUSD/lending_fUSD_20260224
["ID","MTS","AMOUNT","RATE_DAILY","PERIOD"]
[406551825,1771936127715,-500.0,9.54e-05,2]
[406551826,1771936127744,-500.0,9.54e-05,2]
[406551827,1771936127797,-500.0,9.54e-05,2]
[406551828,1771936127826,-500.0,9.54e-05,2]
[406551829,1771936127855,-500.0,9.54e-05,2]
[406551830,1771936127885,-500.0,9.54e-05,2]
[406551831,1771936127915,-500.0,9.54e-05,2]
[406551832,1771936127946,-500.0,9.54e-05,2]
[406551833,1771936127976,-500.0,9.54e-05,2]
[406551834,1771936141992,-561.09304656,9.541e-05,2]
[406551835,1771936142015,-10000.01,9.541e-05,2]
[406551836,1771936142073,-10000.01,9.541e-05,2]
[406551837,1771936142088,-10000.01,9.541e-05,2]
[406551838,1771936142101,-10000.01,9.541e-05,2]
[406551839,1771936142128,-10000.01,9.541e-05,2]
[406551840,1771936142319,-10000.01,9.541e-05,2]
[406551841,1771936144309,-10000.01,9.541e-05,2]
[406551842,1771936144407,-10000.01,9.541e-05,2]
[406551843,1771936144548,-10000.01,9.541e-05,2]
[406551844,1771936163040,500.0,9.54e-05,2]
[406551845,1771936163083,500.0,9.54e-05,2]
[406551846,1771936163131,500.0,9.54e-05,2]
[406551847,1771936163190,500.0,9.54e-05,2]
[406551848,1771936163223,500.0,9.54e-05,2]
[406551849,1771936163261,500.0,9.54e-05,2]
[406551850,1771936163304,500.0,9.54e-05,2]
[406551851,1771936163352,500.0,9.54e-05,2]
[406551852,1771936163397,500.0,9.54e-05,2]
[406551853,1771936163455,500.0,9.54e-05,2]
[406551854,1771936163487,0.01,9.54e-05,2]
[406551855,1771936178837,2638.374786,9.491e-05,2]
[406551856,1771936203712,150.0,0.000114,7]
[406551857,1771936204905,2361.635214,9.507e-05,2]
[406551861,1771936217686,288.90622777,9.4e-05,3]
[406551862,1771936217799,427.81245556,9.4e-05,3]
[406551871,1771936231498,-14316.364786,9.507e-05,2]
[406551872,1771936231507,-300.0,9.539e-05,2]
[406551873,1771936231516,-1200.0,9.539e-05,2]
[406551874,1771936231526,-150.0,9.539e-05,2]
[406551875,1771936231535,-499.99,9.54e-05,2]
[406551876,1771936231544,-500.0,9.54e-05,2]
[406551877,1771936231553,-500.0,9.54e-05,2]
[406551878,1771936231562,-500.0,9.54e-05,2]
[406551879,1771936231571,-500.0,9.54e-05,2]
[406551880,1771936231580,-500.0,9.54e-05,2]
[406551881,1771936231590,-500.0,9.54e-05,2]
[406551882,1771936231599,-500.0,9.54e-05,2]
[406551883,1771936231608,-500.0,9.54e-05,2]
[406551884,1771936231617,-500.0,9.54e-05,2]
[406551885,1771936231626,-500.0,9.54e-05,2]
[406551886,1771936231635,-190.33914155,9.54e-05,2]
[406551887,1771936231644,-500.0,9.54e-05,2]
[406551888,1771936231653,-411214.32524839,9.541e-05,2]
[406551890,1771936231664,-196370.2762599,9.541e-05,2]
[406551892,1771936231675,-202658.88077597,9.541e-05,2]
[406551893,1771936231686,-239874.02624298,9.541e-05,2]
[406551894,1771936231696,-1254.41808677,9.541e-05,2]
[406551895,1771936231731,-96207.00784538,9.541e-05,2]
[406551898,1771936237579,-2228611.84249405,9.541e-05,2]
[406551899,1771936237589,-2500.0,9.541e-05,2]
[406551900,1771936237598,-2308.29151556,9.541e-05,2]
[406551901,1771936237607,-8399.24391928,9.541e-05,2]
[406551902,1771936237616,-237.61539623,9.541e-05,2]
[406551903,1771936237625,-250.0,9.639e-05,2]
[406551904,1771936237635,-314.06541696,9.639e-05,2]
[406551905,1771936237644,-260.07067144,9.64e-05,2]
[406551906,1771936237653,-1205.9102,9.641e-05,2]
[406551907,1771936237662,-912.45,9.657e-05,2]
[406551908,1771936237671,-1000.0,9.741e-05,2]
[406551909,1771936237681,-500.0,9.741e-05,2]
[406551910,1771936237690,-9999.99,9.741e-05,2]
[406551911,1771936237699,-9999.99,9.741e-05,2]
[406551912,1771936237708,-9999.99,9.741e-05,2]
[406551913,1771936237718,-150.99,9.741e-05,2]
[406551914,1771936237728,-9999.99,9.741e-05,2]
[406551915,1771936237737,-14657.05,9.741e-05,2]
[406551917,1771936237746,-5919.05,9.741e-05,2]
[406551918,1771936237755,-35000.07,9.741e-05,2]
[406551920,1771936237764,-509.44,9.741e-05,2]
[406551922,1771936237774,-516.03,9.741e-05,2]
[406551924,1771936237783,-306.28,9.741e-05,2]
[406551926,1771936237792,-150.99,9.741e-05,2]
[406551929,1771936237801,-1613.61,9.741e-05,2]
[406551930,1771936237810,-4999.99,9.741e-05,2]
[406551932,1771936237820,-3838.62,9.741e-05,2]
[406551934,1771936237831,-3571.95,9.741e-05,2]
[406551937,1771936237843,-49999.99,9.741e-05,2]
[406551939,1771936237852,-999.99,9.741e-05,2]
[406551941,1771936237862,-299.99,9.741e-05,2]
[406551943,1771936237871,-1185.85,9.741e-05,2]
[406551945,1771936237880,-499.99,9.741e-05,2]
[406551947,1771936237890,-9999.99,9.741e-05,2]
[406551949,1771936237899,-9999.99,9.741e-05,2]
[406551951,1771936237909,-19912.52,9.863e-05,2]
[406551953,1771936237918,-912.45,9.884e-05,2]
[406551955,1771936237927,-948.42,9.913e-05,2]
[406551957,1771936237938,-48121.48090898,9.95e-05,2]
[406551959,1771936237947,-500.0,9.95e-05,2]
[406551961,1771936237956,-199.03984276,0.0001,2]
[406551963,1771936237965,-151.0,0.0001,2]
[406551965,1771936237974,-151.0,0.0001,2]
[406551967,1771936237984,-151.0,0.0001,2]
[406551969,1771936237993,-151.0,0.0001,2]
[406551971,1771936238002,-151.0,0.0001,2]
[406551973,1771936238012,-151.0,0.0001,2]
[406551975,1771936238022,-151.0,0.0001,2]
[406551977,1771936238031,-151.0,0.0001,2]
[406551979,1771936238041,-151.0,0.0001,2]
[406551982,1771936238051,-151.0,0.0001,2]
[406551984,1771936238060,-151.0,0.0001,2]
[406551986,1771936238070,-151.0,0.0001,2]
[406551988,1771936238083,-151.0,0.0001,2]
[406551990,1771936238093,-151.0,0.0001,2]
[406551992,1771936238102,-151.0,0.0001,2]
[406551994,1771936238111,-151.0,0.0001,2]
[406551996,1771936238121,-151.0,0.0001,2]
[406551998,1771936238130,-151.0,0.0001,2]
[406552000,1771936238139,-151.0,0.0001,2]
[406552002,1771936238150,-151.0,0.0001,2]
[406552004,1771936238160,-275.0,0.0001,2]
[406552006,1771936238169,-275.0,0.0001,2]
[406552008,1771936238178,-19841.8909565,0.0001,2]
[406552010,1771936238187,-515.52777328,0.0001,2]
[406552012,1771936238197,-346.04380865,0.0001,2]
[406552014,1771936238206,-346.04380865,0.0001,2]
[406552016,1771936238215,-271202.414551,0.00010032,2]
[406552018,1771936238224,-239.0,0.00010049,2]
[406552020,1771936238235,-912.45,0.00010112,2]
[406552022,1771936238243,-176.198522,0.00010128,2]
[406552024,1771936238253,-275.60272737,0.00010171,2]
[406552026,1771936238262,-948.42,0.00010187,2]
[406552028,1771936238271,-500.0,0.00010224,2]
[406552030,1771936238280,-912.45,0.00010339,2]
[406552031,1771936238289,-948.42,0.00010461,2]
[406552033,1771936238299,-1413.37,0.00010475,2]
[406552035,1771936238307,-9999.99,0.00010475,2]
[406552037,1771936238317,-420.0,0.00010492,2]
[406552039,1771936238326,-1680.0,0.00010492,2]
[406552041,1771936238335,-255.0,0.00010492,2]
[406552043,1771936238345,-500.0,0.00010498,2]
[406552045,1771936238355,-1318.40715737,0.00010512,2]
[406552046,1771936238365,-5293.47,0.00010555,2]
[406552047,1771936238374,-912.45,0.00010566,2]
[406552048,1771936238383,-250.0,0.00010603,2]
[406552049,1771936238393,-193.0,0.00010603,2]
[406552050,1771936238402,-346.0,0.00010722,2]
[406552051,1771936238411,-948.42,0.00010735,2]
[406552052,1771936238420,-267.0,0.00010744,2]
[406552054,1771936238429,-500.0,0.00010772,2]
[406552055,1771936238439,-912.45,0.00010793,2]
[406552056,1771936238449,-500.0,0.000108,2]
[406552057,1771936238458,-501.2919534,0.000108,2]
[406552058,1771936238468,-500.0,0.000108,2]
[406552059,1771936238478,-500.0,0.000108,2]
[406552060,1771936238487,-688.7080466,0.000108,2]
[406552061,1771936238496,-500.0,0.000108,2]
[406552062,1771936238506,-500.0,0.000108,2]
[406552063,1771936238515,-500.0,0.000108,2]
[406552064,1771936238525,-500.0,0.000108,2]
[406552065,1771936238535,-500.0,0.000108,2]
[406552066,1771936238544,-500.0,0.000108,2]
[406552067,1771936238553,-500.0,0.000108,2]
[406552068,1771936238563,-500.0,0.000108,2]
[406552069,1771936238572,-500.0,0.000108,2]
[406552070,1771936238582,-823.91748752,0.000108,2]
[406552071,1771936238591,-883.88042816,0.00010811,2]
[406552072,1771936238601,-718.0,0.00010812,2]
[406552073,1771936238611,-2003.07639936,0.00010833,2]
[406552074,1771936238621,-4697.42439604,0.000109,2]
[406552075,1771936238631,-16914.87,0.00010959,2]
[406552076,1771936238640,-150.0,0.00010959,2]
[406552077,1771936238650,-948.42,0.00011009,2]
[406552078,1771936238659,-500.0,0.00011046,2]
[406552079,1771936238669,-27376.86086096,0.00011099,2]
[406552080,1771936238678,-27376.86086096,0.00011099,2]
[406552081,1771936238687,-31092.68361973,0.00011099,2]
[406552082,1771936238697,-31092.68361968,0.00011099,2]
[406552083,1771936238707,-27376.86086096,0.00011193,2]
[406552084,1771936238716,-152.78,0.00011233,2]
[406552085,1771936238726,-948.42,0.00011283,2]
[406552086,1771936238736,-500.0,0.0001132,2]
[406552087,1771936238746,-500.0,0.00011428,2]
[406552088,1771936238756,-31092.68361968,0.00011441,2]
[406552089,1771936238766,-600.98,0.0001145,2]
[406552090,1771936238775,-587.0,0.00011542,2]
[406552091,1771936238786,-2351.0,0.00011542,2]
[406552092,1771936238795,-433.0,0.00011542,2]
[406552093,1771936238804,-948.42,0.00011557,2]
[406552094,1771936238814,-500.0,0.00011594,2]
[406552095,1771936238824,-276.35,0.00011729,2]
[406552096,1771936238834,-365.27,0.0001183,2]
[406552097,1771936238844,-948.42,0.00011831,2]
[406552098,1771936238854,-500.0,0.00011868,2]
[406552099,1771936238863,-348.0,0.0001193,2]
[406552100,1771936238873,-151.0,0.00011954,2]
[406552101,1771936238883,-27376.86086096,0.00012019,2]
[406552102,1771936238893,-948.42,0.00012105,2]
[406552103,1771936238903,-500.0,0.00012142,2]
[406552104,1771936238912,-948.42,0.00012379,2]
[406552105,1771936238922,-31092.68361968,0.00012391,2]
[406552106,1771936238932,-500.0,0.00012416,2]
[406552107,1771936238941,-250.0,0.00012562,2]
[406552108,1771936238951,-948.45950757,0.00012653,2]
[406552109,1771936238960,-500.0,0.0001269,2]
[406552110,1771936238970,-823.0,0.00012696,2]
[406552111,1771936238979,-3292.0,0.00012696,2]
[406552112,1771936238989,-736.0,0.00012696,2]
[406552113,1771936239000,-175.65,0.00012797,2]
[406552114,1771936239010,-27376.86086096,0.00012845,2]
[406552115,1771936239019,-500.0,0.00012964,2]
[406552116,1771936239029,-500.0,0.00013073,2]
[406552117,1771936239039,-500.0,0.00013073,2]
[406552118,1771936239048,-500.0,0.00013073,2]
[406552119,1771936239057,-500.0,0.00013073,2]
[406552120,1771936239066,-500.0,0.00013073,2]
[406552121,1771936239077,-500.0,0.00013073,2]
[406552122,1771936239087,-500.0,0.00013073,2]
[406552123,1771936239097,-500.0,0.00013073,2]
[406552124,1771936239106,-500.0,0.00013073,2]
[406552125,1771936239117,-500.0,0.00013073,2]
[406552126,1771936239127,-500.0,0.00013073,2]
[406552127,1771936239136,-500.0,0.00013073,2]
[406552128,1771936239146,-411.57948718,0.00013101,2]
[406552129,1771936239156,-461.31436934,0.00013101,2]
[406552130,1771936239165,-497.3794907,0.00013101,2]
[406552131,1771936239175,-500.0,0.00013101,2]
[406552132,1771936239184,-500.0,0.00013101,2]
[406552133,1771936239194,-500.0,0.00013101,2]
[406552134,1771936239203,-500.0,0.00013101,2]
[406552135,1771936239213,-800.0,0.00013101,2]
[406552136,1771936239223,-500.0,0.00013101,2]
[406552137,1771936239233,-500.0,0.00013101,2]
[406552138,1771936239243,-500.0,0.00013101,2]
[406552139,1771936239252,-500.0,0.00013101,2]
[406552140,1771936239261,-500.0,0.00013101,2]
[406552141,1771936239271,-500.0,0.00013101,2]
[406552142,1771936239280,-500.0,0.00013101,2]
[406552143,1771936239290,-500.0,0.00013101,2]
[406552144,1771936239300,-500.0,0.00013101,2]
[406552145,1771936239309,-500.0,0.00013101,2]
[406552146,1771936239318,-500.0,0.00013101,2]
[406552147,1771936239327,-500.0,0.00013101,2]
[406552148,1771936239336,-500.0,0.00013101,2]
[406552149,1771936239345,-500.0,0.00013101,2]
[406552150,1771936239358,-500.0,0.00013101,2]
[406552151,1771936239367,-500.0,0.00013101,2]
[406552152,1771936239377,-500.0,0.00013101,2]
[406552153,1771936239386,-500.0,0.00013101,2]
[406552154,1771936239396,-500.0,0.00013101,2]
[406552155,1771936239406,-500.0,0.00013238,2]
[406552156,1771936239416,-31092.68361968,0.00013341,2]
[406552157,1771936239425,-200.0,0.00013397,2]
[406552158,1771936239435,-500.0,0.00013512,2]
[406552159,1771936239444,-501.70650637,0.00013621,2]
[406552160,1771936239454,-1000.0,0.00013621,2]
[406552161,1771936239463,-1000.0,0.00013621,2]
[406552162,1771936239473,-1000.0,0.00013621,2]
[406552163,1771936239482,-501.90132287,0.00013621,2]
[406552164,1771936239491,-550.01264972,0.00013621,2]
[406552165,1771936239501,-1000.0,0.00013621,2]
[406552166,1771936239510,-1000.0,0.00013621,2]
[406552167,1771936239519,-235.93365693,0.00013621,2]
[406552168,1771936239530,-1000.0,0.00013621,2]
[406552169,1771936239539,-328.54094648,0.00013621,2]
[406552170,1771936239549,-1000.0,0.00013621,2]
[406552171,1771936239558,-27376.86086096,0.00013671,2]
[406552172,1771936239567,-515.52777327,0.00013696,2]
[406552173,1771936239577,-500.0,0.00013698,2]
[406552174,1771936239587,-500.0,0.00013698,2]
[406552175,1771936239596,-500.0,0.00013698,2]
[406552176,1771936239605,-500.0,0.00013698,2]
[406552177,1771936239614,-500.0,0.00013698,2]
[406552178,1771936239623,-500.0,0.00013698,2]
[406552179,1771936239633,-500.0,0.00013698,2]
[406552180,1771936239643,-500.0,0.00013698,2]
[406552181,1771936239652,-500.0,0.00013698,2]
[406552182,1771936239662,-500.0,0.00013698,2]
[406552183,1771936239671,-500.0,0.00013698,2]
[406552184,1771936239680,-500.0,0.00013698,2]
[406552185,1771936239690,-500.0,0.00013698,2]
[406552186,1771936239699,-500.0,0.00013698,2]
[406552187,1771936239709,-500.0,0.00013698,2]
[406552188,1771936239719,-500.0,0.00013698,2]
[406552189,1771936239728,-500.0,0.00013698,2]
[406552190,1771936239737,-500.0,0.00013698,2]
[406552191,1771936239747,-500.0,0.00013698,2]
[406552192,1771936239756,-500.0,0.00013698,2]
[406552193,1771936239765,-500.0,0.00013698,2]
[406552194,1771936239775,-500.0,0.00013698,2]
[406552195,1771936239784,-500.0,0.00013698,2]
[406552196,1771936239793,-500.0,0.00013698,2]
[406552197,1771936239802,-502.16359539,0.00013698,2]
[406552198,1771936239811,-500.0,0.00013698,2]
[406552199,1771936239820,-500.0,0.00013698,2]
[406552200,1771936239830,-500.0,0.00013698,2]
[406552201,1771936240053,-500.0,0.00013698,2]
[406552202,1771936240076,-500.0,0.00013698,2]
[406552203,1771936240086,-500.0,0.00013698,2]
[406552204,1771936240095,-500.0,0.00013698,2]
[406552205,1771936240104,-500.0,0.00013698,2]
[406552206,1771936240113,-500.0,0.00013698,2]
[406552207,1771936240122,-500.0,0.00013698,2]
[406552208,1771936240131,-500.0,0.00013698,2]
[406552209,1771936240141,-500.0,0.00013698,2]
[406552210,1771936240151,-500.0,0.00013698,2]
[406552211,1771936240160,-574.86865068,0.00013698,2]
[406552212,1771936240169,-500.0,0.00013698,2]
[406552213,1771936240178,-500.0,0.00013698,2]
[406552214,1771936240187,-500.0,0.00013698,2]
[406552215,1771936240196,-500.0,0.00013698,2]
[406552216,1771936240205,-500.0,0.00013698,2]
[406552217,1771936240214,-500.0,0.00013698,2]
[406552218,1771936240224,-500.0,0.00013698,2]
[406552219,1771936240233,-500.0,0.00013698,2]
[406552220,1771936240242,-395.88818611,0.00013698,2]
[406552221,1771936240251,-512.1,0.00013698,2]
[406552222,1771936240259,-512.1,0.00013698,2]
[406552223,1771936240268,-512.1,0.00013698,2]
[406552224,1771936240277,-512.1,0.00013698,2]
[406552225,1771936240286,-512.1,0.00013698,2]
[406552226,1771936240295,-512.1,0.00013698,2]
[406552227,1771936240304,-512.1,0.00013698,2]
[406552228,1771936240312,-512.1,0.00013698,2]
[406552229,1771936240321,-512.1,0.00013698,2]
[406552230,1771936240330,-512.1,0.00013698,2]
[406552231,1771936240339,-512.1,0.00013698,2]
[406552232,1771936240347,-512.1,0.00013698,2]
[406552233,1771936240356,-512.1,0.00013698,2]
[406552234,1771936240365,-512.1,0.00013698,2]
[406552235,1771936240374,-500.0,0.00013698,2]
[406552236,1771936240383,-500.0,0.00013698,2]
[406552238,1771936240392,-500.0,0.00013698,2]
[406552239,1771936240401,-500.0,0.00013698,2]
[406552240,1771936240410,-501.58967205,0.00013698,2]
[406552241,1771936240419,-500.0,0.00013698,2]
[406552242,1771936240427,-500.0,0.00013698,2]
[406552243,1771936240436,-500.0,0.00013698,2]
[406552244,1771936240445,-500.0,0.00013698,2]
[406552245,1771936240454,-268.25985649,0.00013698,2]
[406552246,1771936240463,-500.0,0.00013698,2]
[406552247,1771936240472,-500.0,0.00013698,2]
[406552248,1771936240480,-500.0,0.00013698,2]
[406552249,1771936240489,-500.0,0.00013698,2]
[406552250,1771936240498,-500.0,0.00013698,2]
[406552251,1771936240507,-500.0,0.00013698,2]
[406552252,1771936240515,-500.0,0.00013698,2]
[406552253,1771936240524,-500.0,0.00013698,2]
[406552254,1771936240533,-500.0,0.00013698,2]
[406552255,1771936240542,-500.0,0.00013698,2]
[406552256,1771936240551,-500.0,0.00013698,2]
[406552257,1771936240560,-500.0,0.00013698,2]
[406552258,1771936240569,-500.0,0.00013698,2]
[406552259,1771936240577,-391.17971065,0.00013698,2]
[406552260,1771936240586,-549.94,0.00013698,2]
[406552261,1771936240595,-549.94,0.00013698,2]
[406552262,1771936240605,-549.94,0.00013698,2]
[406552263,1771936240614,-549.94,0.00013698,2]
[406552264,1771936240623,-549.94,0.00013698,2]
[406552265,1771936240632,-549.94,0.00013698,2]
[406552266,1771936240640,-549.94,0.00013698,2]
[406552267,1771936240650,-549.94,0.00013698,2]
[406552268,1771936240659,-549.94,0.00013698,2]
[406552269,1771936240668,-549.94,0.00013698,2]
[406552270,1771936240677,-549.94,0.00013698,2]
[406552271,1771936240686,-549.94,0.00013698,2]
[406552272,1771936240695,-549.94,0.00013698,2]
[406552273,1771936240704,-549.94,0.00013698,2]
[406552274,1771936240714,-549.94,0.00013698,2]
[406552275,1771936240723,-549.94,0.00013698,2]
[406552276,1771936240732,-500.0,0.00013698,2]
[406552277,1771936240741,-514.97195478,0.00013698,2]
[406552278,1771936240750,-500.0,0.00013698,2]
[406552279,1771936240759,-500.0,0.00013698,2]
[406552280,1771936240768,-500.0,0.00013698,2]
[406552281,1771936240777,-500.0,0.00013698,2]
[406552282,1771936240786,-500.0,0.00013698,2]
[406552283,1771936240798,-500.0,0.00013698,2]
[406552284,1771936240807,-510.28250517,0.00013698,2]
[406552285,1771936240816,-500.0,0.00013698,2]
[406552286,1771936240825,-500.0,0.00013698,2]
[406552287,1771936240834,-500.0,0.00013698,2]
[406552288,1771936240844,-500.0,0.00013698,2]
[406552289,1771936240852,-500.0,0.00013698,2]
[406552290,1771936240862,-500.0,0.00013698,2]
[406552291,1771936240871,-500.0,0.00013698,2]
[406552292,1771936240880,-500.0,0.00013698,2]
[406552293,1771936240889,-500.0,0.00013698,2]
[406552294,1771936240898,-500.0,0.00013698,2]
[406552295,1771936240907,-500.0,0.00013698,2]
[406552296,1771936240915,-500.0,0.00013698,2]
[406552297,1771936240924,-500.0,0.00013698,2]
[406552298,1771936240934,-500.0,0.00013698,2]
[406552299,1771936240943,-500.0,0.00013698,2]
[406552300,1771936240952,-500.0,0.00013698,2]
[406552301,1771936240962,-500.0,0.00013698,2]
[406552302,1771936240971,-500.0,0.00013698,2]
[406552303,1771936240979,-500.0,0.00013698,2]
[406552304,1771936240988,-500.0,0.00013698,2]
[406552305,1771936240997,-500.0,0.00013698,2]
[406552306,1771936241006,-500.0,0.00013698,2]
[406552307,1771936241015,-500.0,0.00013698,2]
[406552308,1771936241024,-500.0,0.00013698,2]
[406552309,1771936241033,-500.0,0.00013698,2]
[406552310,1771936241042,-500.0,0.00013698,2]
[406552311,1771936241051,-500.0,0.00013698,2]
[406552312,1771936241060,-500.0,0.00013698,2]
[406552313,1771936241069,-500.0,0.00013698,2]
[406552314,1771936241083,-500.0,0.00013698,2]
[406552315,1771936241091,-500.0,0.00013698,2]
[406552316,1771936241100,-500.0,0.00013698,2]
[406552317,1771936241109,-500.0,0.00013698,2]
[406552318,1771936241119,-500.0,0.00013698,2]
[406552319,1771936241128,-500.0,0.00013698,2]
[406552320,1771936241138,-500.0,0.00013698,2]
[406552321,1771936241148,-500.0,0.00013698,2]
[406552322,1771936241157,-500.0,0.00013698,2]
[406552323,1771936241166,-500.0,0.00013698,2]
[406552324,1771936241175,-500.0,0.00013698,2]
[406552325,1771936241184,-500.0,0.00013698,2]
[406552326,1771936241192,-500.0,0.00013698,2]
[406552327,1771936241202,-364.45426378,0.00013698,2]
[406552328,1771936241210,-566.19,0.00013698,2]
[406552329,1771936241219,-566.19,0.00013698,2]
[406552330,1771936241228,-566.19,0.00013698,2]
[406552331,1771936241237,-566.19,0.00013698,2]
[406552332,1771936241246,-566.19,0.00013698,2]
[406552333,1771936241255,-566.19,0.00013698,2]
[406552334,1771936241263,-566.19,0.00013698,2]
[406552335,1771936241272,-566.19,0.00013698,2]
[406552336,1771936241281,-566.19,0.00013698,2]
[406552337,1771936241290,-566.19,0.00013698,2]
[406552338,1771936241299,-566.19,0.00013698,2]
[406552339,1771936241308,-566.19,0.00013698,2]
[406552340,1771936241317,-566.19,0.00013698,2]
[406552341,1771936241326,-566.19,0.00013698,2]
[406552342,1771936241335,-591.67,0.00013698,2]
[406552343,1771936241343,-591.67,0.00013698,2]
[406552344,1771936241352,-591.67,0.00013698,2]
[406552345,1771936241361,-591.67,0.00013698,2]
[406552346,1771936241371,-591.67,0.00013698,2]
[406552347,1771936241379,-591.67,0.00013698,2]
[406552348,1771936241389,-591.67,0.00013698,2]
[406552349,1771936241399,-591.67,0.00013698,2]
[406552350,1771936241407,-591.67,0.00013698,2]
[406552351,1771936241416,-591.67,0.00013698,2]
[406552352,1771936241426,-591.67,0.00013698,2]
[406552353,1771936241435,-591.67,0.00013698,2]
[406552354,1771936241444,-591.67,0.00013698,2]
[406552355,1771936241454,-591.67,0.00013698,2]
[406552356,1771936241463,-500.0,0.00013698,2]
[406552357,1771936241472,-500.0,0.00013698,2]
[406552358,1771936241481,-500.0,0.00013698,2]
[406552359,1771936241490,-500.0,0.00013698,2]
[406552360,1771936241499,-500.0,0.00013698,2]
[406552361,1771936241508,-500.0,0.00013698,2]
[406552362,1771936241517,-500.0,0.00013698,2]
[406552363,1771936241526,-500.0,0.00013698,2]
[406552364,1771936241535,-500.0,0.00013698,2]
[406552365,1771936241544,-500.0,0.00013698,2]
[406552366,1771936241553,-500.0,0.00013698,2]
[406552367,1771936241562,-500.0,0.00013698,2]
[406552368,1771936241571,-500.0,0.00013698,2]
[406552369,1771936241580,-500.0,0.00013698,2]
[406552370,1771936241589,-917.0,0.00013698,2]
[406552371,1771936241598,-917.0,0.00013698,2]
[406552372,1771936241607,-917.0,0.00013698,2]
[406552373,1771936241615,-917.0,0.00013698,2]
[406552374,1771936241624,-917.0,0.00013698,2]
[406552375,1771936241633,-917.0,0.00013698,2]
[406552376,1771936241642,-917.0,0.00013698,2]
[406552377,1771936241651,-917.0,0.00013698,2]
[406552378,1771936241660,-917.0,0.00013698,2]
[406552379,1771936241669,-917.0,0.00013698,2]
[406552380,1771936241678,-917.0,0.00013698,2]
[406552381,1771936241687,-917.0,0.00013698,2]
[406552382,1771936241696,-917.0,0.00013698,2]
[406552383,1771936241704,-917.0,0.00013698,2]
[406552384,1771936241713,-657.39,0.00013698,2]
[406552385,1771936241723,-500.0,0.00013698,2]
[406552386,1771936241732,-657.39,0.00013698,2]
[406552387,1771936241741,-500.0,0.00013698,2]
[406552388,1771936241750,-657.39,0.00013698,2]
[406552389,1771936241759,-500.0,0.00013698,2]
[406552390,1771936241768,-657.39,0.00013698,2]
[406552391,1771936241777,-500.0,0.00013698,2]
[406552392,1771936241786,-657.39,0.00013698,2]
[406552393,1771936241795,-507.40049193,0.00013698,2]
[406552394,1771936241804,-657.39,0.00013698,2]
[406552395,1771936241813,-657.39,0.00013698,2]
[406552396,1771936241822,-657.39,0.00013698,2]
[406552397,1771936241831,-657.39,0.00013698,2]
[406552398,1771936241840,-657.39,0.00013698,2]
[406552399,1771936241850,-657.39,0.00013698,2]
[406552400,1771936241858,-657.39,0.00013698,2]
[406552401,1771936241868,-657.39,0.00013698,2]
[406552402,1771936241877,-657.39,0.00013698,2]
[406552403,1771936241886,-657.39,0.00013698,2]
[406552404,1771936241895,-657.39,0.00013698,2]
[406552405,1771936241904,-500.0,0.00013698,2]
[406552406,1771936241913,-500.0,0.00013698,2]